bitfinex/quotes_BTCUSD_20241120
["timestamp","ask_amount","ask_price","bid_price","bid_amount"]
[1732068824191,0.10906255,91521.0,91520.0,0.09794854]
[1732068824403,0.11056931,91521.0,91520.0,0.09794854]
[1732068827909,0.00131595,91521.0,91519.0,0.09794854]
[1732068828351,0.10906255,91521.0,91520.0,0.09794854]
[1732068828791,0.11053549,91521.0,91520.0,0.09794854]
[1732068831116,0.11053549,91521.0,91519.0,0.14692282]
[1732068832869,0.10906255,91521.0,91519.0,0.14692282]
[1732068834166,0.075,91532.0,91519.0,0.19589709]
[1732068834395,0.075,91532.0,91515.0,0.1]
[1732068834396,0.10906255,91531.0,91525.0,0.09796819]
[1732068834605,0.11053976,91531.0,91528.0,0.09796819]
[1732068835272,0.11327114,91531.0,91524.0,0.09796819]
[1732068835708,0.11327114,91531.0,91523.0,0.09796819]
[1732068836287,0.11053976,91531.0,91523.0,0.09796819]
[1732068837655,0.11327114,91531.0,91523.0,0.09796819]
[1732068838072,0.11327114,91531.0,91523.0,0.09797431]
[1732068839051,0.11053976,91531.0,91523.0,0.09797431]
[1732068839957,0.11053976,91531.0,91525.0,0.09797431]
[1732068840198,0.11224736,91531.0,91525.0,0.09797431]
[1732068841473,0.11224736,91531.0,91527.0,0.09796885]
[1732068841687,0.11224736,91531.0,91523.0,0.0349476]
[1732068841688,0.11224736,91531.0,91526.0,0.09796885]
[1732068843406,0.11224736,91531.0,91527.0,0.09796885]
[1732068844069,0.11224736,91531.0,91528.0,0.09796885]
[1732068844285,0.11077015,91531.0,91528.0,0.09796885]
[1732068844508,0.00147678,91530.0,91525.0,0.09797736]
[1732068844727,0.10906255,91529.0,91525.0,0.09797736]
[1732068845171,0.00147593,91528.0,91522.0,0.03532928]
[1732068845404,0.00147593,91528.0,91523.0,0.1959377]
[1732068845612,0.0017076,91531.0,91526.0,0.0587]
[1732068845838,0.0017076,91531.0,91528.0,0.19592274]
[1732068846070,0.0017076,91531.0,91529.0,0.1]
[1732068846520,0.0017076,91531.0,91530.0,0.31592274]
[1732068846786,0.0017072,91545.0,91530.0,0.31592274]
[1732068846787,0.0017072,91545.0,91534.0,0.02]
[1732068849447,0.0017072,91545.0,91534.0,0.26445827]
[1732068849632,0.0017072,91545.0,91534.0,0.36445827]
[1732068850051,0.0017072,91545.0,91534.0,0.36445824]
[1732068850274,0.0017072,91545.0,91534.0,0.12]
[1732068850936,0.0017072,91545.0,91534.0,0.02]
[1732068851145,0.0017072,91545.0,91534.0,0.12]
[1732068851370,0.0017072,91545.0,91534.0,0.25908321]
[1732068851575,0.0017072,91545.0,91534.0,0.22906255]
[1732068851789,0.0017072,91545.0,91534.0,0.27696255]
[1732068852230,0.0787,91574.0,91558.0,0.01]
[1732068852650,0.0787,91574.0,91550.0,0.11]
[1732068852904,0.00272993,91599.0,91548.0,0.11]
[1732068852905,0.0787,91558.0,91548.0,0.1]
[1732068853138,0.00145477,91557.0,91548.0,0.1]
[1732068853347,0.00145477,91557.0,91548.0,0.11]
[1732068854150,0.00145477,91557.0,91548.0,0.01]
[1732068854813,0.0787,91558.0,91548.0,0.01]
[1732068855026,0.0787,91558.0,91548.0,0.04525086]
[1732068855232,0.0787,91558.0,91548.0,0.01]
[1732068855914,0.00145351,91557.0,91548.0,0.01]
[1732068861864,0.00145351,91557.0,91553.0,0.01]
[1732068862098,0.0787,91567.0,91553.0,0.01]
[1732068862913,0.0787,91567.0,91558.0,0.01]
[1732068865533,0.0769,91575.0,91558.0,0.01]
[1732068866414,0.0769,91575.0,91558.0,0.04594671]
[1732068866643,0.0769,91575.0,91558.0,0.01]
[1732068868591,0.0769,91575.0,91557.0,0.01]
[1732068868816,0.0769,91575.0,91556.0,0.01]
[1732068869222,0.0769,91575.0,91558.0,0.01]
[1732068870456,0.0453,91567.0,91555.0,0.01]
[1732068870604,0.0769,91558.0,91555.0,0.01]
[1732068870842,0.0769,91558.0,91557.0,0.01]
[1732068871053,0.0769,91558.0,91555.0,0.01]
[1732068871054,0.00146869,91557.0,91555.0,0.01]
[1732068871315,0.0769,91558.0,91554.0,0.04482781]
[1732068871494,0.0769,91558.0,91554.0,0.03482781]
[1732068871495,0.00146826,91556.0,91554.0,0.03482781]
[1732068871835,0.0769,91558.0,91553.0,0.01]
[1732068872065,0.00146784,91555.0,91553.0,0.01]
[1732068872257,0.0769,91558.0,91553.0,0.01]
[1732068872457,0.00146741,91554.0,91553.0,0.01]
[1732068872656,0.0769,91558.0,91554.0,0.01]
[1732068874652,0.0769,91558.0,91549.0,0.03499271]
[1732068874908,0.0769,91558.0,91546.0,0.02]
[1732068875314,0.0769,91558.0,91547.0,0.01]
[1732068875761,0.0769,91558.0,91546.0,0.02]
[1732068875942,0.0769,91558.0,91547.0,0.01]
[1732068876286,0.00146869,91557.0,91547.0,0.01]
[1732068878023,0.0769,91582.0,91563.0,0.01]
[1732068878247,0.0769,91582.0,91562.0,0.0576]
[1732068878248,0.0769,91582.0,91573.0,0.01]
[1732068878452,0.0769,91582.0,91573.0,0.04360916]
[1732068878672,0.0769,91582.0,91573.0,0.01]
[1732068879370,0.0769,91582.0,91579.0,0.01]
[1732068879601,0.0017086,91583.0,91580.0,0.01]
[1732068880265,0.0017086,91583.0,91581.0,0.01]
[1732068882430,0.0017086,91583.0,91582.0,0.01]
[1732068882873,0.0017086,91583.0,91582.0,0.03482936]
[1732068883090,0.001708,91616.0,91594.0,0.01]
[1732068883091,0.0785,91606.0,91594.0,0.01]
[1732068883526,0.0785,91606.0,91583.0,0.23389191]
[1732068883527,0.00139895,91604.0,91593.0,0.01]
[1732068883749,0.00139895,91604.0,91583.0,0.23389191]
[1732068883750,0.00139895,91604.0,91597.0,0.01]
[1732068884406,0.075,91614.0,91603.0,0.01]
[1732068884618,0.001708,91616.0,91604.0,0.02]
[1732068884827,0.001708,91616.0,91604.0,0.25389191]
[1732068885267,0.001708,91616.0,91612.0,0.01]
[1732068885752,0.00314913,91613.0,91612.0,0.06818336]
[1732068886205,0.0017078,91613.0,91612.0,0.06818336]
[1732068886433,0.0017094,91637.0,91636.0,0.01]
[1732068886862,0.0017094,91637.0,91636.0,0.07696316]
[1732068887716,0.0017094,91637.0,91636.0,0.04360916]
[1732068888382,0.0017094,91637.0,91628.0,0.01]
[1732068888383,0.0017094,91637.0,91634.0,0.1]
[1732068888633,0.0017094,91637.0,91636.0,0.03559579]
[1732068888863,0.0017094,91637.0,91629.0,0.01]
[1732068889288,0.0017094,91637.0,91628.0,0.04564532]
[1732068889289,0.0017094,91637.0,91628.0,0.03564532]
[1732068889712,0.0017094,91637.0,91620.0,0.01]
[1732068890066,0.0017094,91637.0,91624.0,0.01]
[1732068890675,0.0017094,91637.0,91620.0,0.01]
[1732068890882,0.0017094,91637.0,91619.0,0.01]
[1732068890883,0.0017094,91637.0,91624.0,0.01]
[1732068891287,0.001473,91636.0,91624.0,0.01]
[1732068893056,0.001473,91636.0,91623.0,0.01]
[1732068893595,0.001473,91636.0,91624.0,0.01]
[1732068894663,0.001473,91636.0,91623.0,0.01]
[1732068895129,0.001473,91636.0,91619.0,0.04516765]
[1732068895130,0.10906255,91635.0,91619.0,0.03516765]
[1732068895310,0.10906255,91635.0,91614.0,0.01]
[1732068895311,0.10906255,91635.0,91614.0,0.02]
[1732068895512,0.00149783,91634.0,91614.0,0.02]
[1732068896316,0.00149783,91634.0,91589.0,0.0479]
[1732068896317,0.046,91632.0,91608.0,0.01]
[1732068896521,0.11179097,91631.0,91607.0,0.01]
[1732068896736,0.11328733,91631.0,91613.0,0.01]
[1732068897392,0.11055891,91631.0,91613.0,0.01]
[1732068898548,0.00149636,91631.0,91613.0,0.02]
[1732068898795,0.00149636,91631.0,91618.0,0.01]
[1732068899147,0.0017094,91637.0,91618.0,0.01]
[1732068899558,0.0017094,91637.0,91623.0,0.02]
[1732068899559,0.00149882,91636.0,91623.0,0.02]
[1732068899738,0.00149882,91636.0,91622.0,0.02]
[1732068900186,0.00149882,91636.0,91627.0,0.01]
[1732068900390,0.00149882,91636.0,91633.0,0.01]
[1732068900628,0.0017094,91637.0,91633.0,0.01]
[1732068902714,0.0017092,91645.0,91634.0,0.033354]
[1732068902900,0.0017092,91645.0,91637.0,0.01]
[1732068903098,0.00139342,91644.0,91637.0,0.03511744]
[1732068903297,0.0017092,91645.0,91638.0,0.02511744]
[1732068903594,0.0017092,91645.0,91639.0,0.03458248]
[1732068903730,0.0017092,91645.0,91638.0,0.02511744]
[1732068904966,0.0017092,91645.0,91638.0,0.05969992]
[1732068905181,0.0017092,91645.0,91638.0,0.02511744]
[1732068906261,0.0017092,91645.0,91637.0,0.01]
[1732068906488,0.0017092,91645.0,91638.0,0.03582369]
[1732068906697,0.0017092,91645.0,91637.0,0.01]
[1732068908559,0.0017092,91645.0,91633.0,0.03585146]
[1732068908757,0.0017092,91645.0,91621.0,0.01]
[1732068908758,0.18406255,91644.0,91623.0,0.01]
[1732068908998,0.18406255,91644.0,91621.0,0.01]
[1732068908999,0.18406255,91644.0,91626.0,0.01]
[1732068909191,0.00142602,91643.0,91623.0,0.01]
[1732068910191,0.00142602,91643.0,91625.0,0.01]
[1732068912058,0.0483,91642.0,91625.0,0.01]
[1732068912257,0.0483,91642.0,91625.0,0.0117056]
[1732068912575,0.00142511,91641.0,91625.0,0.0117056]
[1732068912998,0.00142511,91641.0,91634.0,0.1]
[1732068913642,0.00142511,91641.0,91625.0,0.0117056]
[1732068914046,0.00142511,91641.0,91633.0,0.01]
[1732068914482,0.0008528,91643.0,91633.0,0.01]
[1732068914753,0.0008528,91643.0,91642.0,0.01]
[1732068915417,0.0008528,91643.0,91637.0,0.01]
[1732068915860,0.0008528,91643.0,91641.0,0.01]
[1732068916986,0.0008528,91643.0,91637.0,0.04463795]
[1732068919443,0.0008528,91643.0,91637.0,0.03463795]
[1732068919850,0.0008528,91643.0,91636.0,0.01]
[1732068921288,0.0008528,91643.0,91636.0,0.04512599]
[1732068921488,0.0008528,91643.0,91636.0,0.01]
[1732068921720,0.0008528,91643.0,91625.0,0.0017056]
[1732068921721,0.0788,91642.0,91625.0,0.0017056]
[1732068922111,0.0788,91642.0,91629.0,0.01]
[1732068922301,0.0788,91642.0,91638.0,0.01]
[1732068922302,0.00143222,91641.0,91638.0,0.01]
[1732068923046,0.00120646,91649.0,91644.0,0.01]
[1732068923314,0.0017092,91653.0,91644.0,0.01]
[1732068924528,0.0017092,91653.0,91641.0,0.01]
[1732068924736,0.0017092,91653.0,91644.0,0.01]
[1732068926030,0.0017092,91653.0,91647.0,0.01]
[1732068926251,0.0017092,91653.0,91644.0,0.01]
[1732068926252,0.0017092,91653.0,91646.0,0.01]
[1732068927317,0.0017092,91653.0,91651.0,0.01]
[1732068927535,0.0017092,91653.0,91652.0,0.01]
[1732068927745,0.0776,91663.0,91652.0,0.01]
[1732068927956,0.0776,91663.0,91652.0,0.04489233]
[1732068928153,0.0776,91663.0,91652.0,0.01]
[1732068928356,0.0776,91663.0,91653.0,0.1]
[1732068929422,0.0776,91663.0,91653.0,0.19699951]
[1732068930217,0.0776,91663.0,91653.0,0.23181873]
[1732068930479,0.0776,91663.0,91655.0,0.09699951]
[1732068930837,0.0776,91663.0,91653.0,0.13481922]
[1732068930838,0.0776,91663.0,91654.0,0.09699951]
[1732068931274,0.0776,91663.0,91655.0,0.09699951]
[1732068931420,0.0776,91663.0,91656.0,0.09699951]
[1732068931615,0.0776,91663.0,91655.0,0.09699951]
[1732068932381,0.0776,91663.0,91658.0,0.20699951]
[1732068932563,0.0776,91663.0,91658.0,0.20756508]
[1732068932761,0.0776,91663.0,91659.0,0.1]
[1732068933022,0.0776,91663.0,91661.0,0.09756197]
[1732068933582,0.0017092,91669.0,91661.0,0.19756197]
[1732068934464,0.0017092,91669.0,91662.0,0.19756197]
[1732068934658,0.0017092,91669.0,91662.0,0.1]
[1732068934878,0.0017092,91669.0,91664.0,0.01]
[1732068935474,0.0017092,91669.0,91665.0,0.1]
[1732068935687,0.0017092,91669.0,91664.0,0.10756197]
[1732068935688,0.0017092,91669.0,91664.0,0.01]
[1732068936556,0.0017092,91669.0,91664.0,0.10756197]
[1732068936788,0.0017092,91669.0,91663.0,0.1]
[1732068936990,0.0776,91668.0,91663.0,0.1]
[1732068937415,0.00140365,91667.0,91663.0,0.1]
[1732068937621,0.1232,91665.0,91655.0,0.19756197]
[1732068937825,0.1232,91665.0,91656.0,0.19756197]
[1732068937826,0.23226255,91665.0,91656.0,0.19756197]
[1732068938031,0.0776,91663.0,91655.0,0.13211126]
[1732068938243,0.11179011,91662.0,91655.0,0.03454929]
[1732068938490,0.11179011,91662.0,91646.0,0.09756197]
[1732068938491,0.0776,91661.0,91646.0,0.09756197]
[1732068938698,0.11329928,91662.0,91645.0,0.09756197]
[1732068938699,0.0776,91659.0,91645.0,0.09756197]
[1732068938903,0.0776,91657.0,91645.0,0.09756197]
[1732068939401,0.0015005,91656.0,91645.0,0.09756197]
[1732068939608,0.0015005,91656.0,91642.0,0.18068869]
[1732068939609,0.0831,91654.0,91646.0,0.09756197]
[1732068939815,0.15939015,91655.0,91642.0,0.09756197]
[1732068939816,0.0831,91652.0,91642.0,0.09756197]
[1732068940019,0.0831,91649.0,91641.0,0.09756197]
[1732068940256,0.0831,91647.0,91638.0,0.09756197]
[1732068940481,0.11179059,91646.0,91639.0,0.09756197]
[1732068940698,0.0831,91645.0,91637.0,0.0369021]
[1732068940947,0.11322868,91646.0,91637.0,0.0369021]
[1732068940948,0.1117908,91644.0,91637.0,0.0369021]
[1732068941168,0.0831,91643.0,91637.0,0.0369021]
[1732068941372,0.11179083,91642.0,91637.0,0.0369021]
[1732068941575,0.10906255,91642.0,91637.0,0.0369021]
[1732068941781,0.00143326,91641.0,91637.0,0.0369021]
[1732068942000,0.10906255,91640.0,91637.0,0.0369021]
[1732068942438,0.00142454,91639.0,91637.0,0.0369021]
[1732068942671,0.11321537,91639.0,91637.0,0.0369021]
[1732068942899,0.11048709,91639.0,91637.0,0.0369021]
[1732068943770,0.19489071,91638.0,91637.0,0.0369021]
[1732068944001,0.24249071,91638.0,91637.0,0.0369021]
[1732068944226,0.24118513,91638.0,91637.0,0.0369021]
[1732068945109,0.24218513,91638.0,91637.0,0.0017056]
[1732068945342,0.24318513,91638.0,91637.0,0.0017056]
[1732068945789,0.24118513,91638.0,91637.0,0.0017056]
[1732068946413,0.0831,91637.0,91633.0,0.0017056]
[1732068946620,0.0831,91635.0,91633.0,0.0017056]
[1732068946837,0.19689123,91634.0,91633.0,0.0017056]
[1732068947022,0.19630677,91634.0,91633.0,0.0017056]
[1732068947326,0.19830677,91634.0,91633.0,0.0017056]
[1732068947767,0.24590677,91634.0,91633.0,0.0017056]
[1732068947979,0.24317809,91634.0,91633.0,0.0017056]
[1732068949535,0.24317809,91634.0,91633.0,0.00077548]
[1732068950169,0.24117809,91634.0,91633.0,0.00077548]
[1732068950605,0.24317809,91634.0,91633.0,0.00077548]
[1732068951453,0.24117809,91634.0,91633.0,0.00077548]
[1732068951689,0.24317809,91634.0,91633.0,0.00077548]
[1732068953525,0.002,91631.0,91628.0,0.03550076]
[1732068953734,0.002,91631.0,91625.0,0.0017056]
[1732068953735,0.01,91626.0,91625.0,0.0017056]
[1732068953960,0.25449167,91626.0,91625.0,0.0017056]
[1732068954184,0.25325361,91626.0,91625.0,0.0017056]
[1732068955137,0.24325361,91626.0,91625.0,0.0017056]
[1732068958986,0.25325361,91626.0,91625.0,0.0017056]
[1732068960560,0.002,91616.0,91615.0,0.02747526]
[1732068960779,0.0851,91615.0,91588.0,0.01]
[1732068961002,0.002,91613.0,91588.0,0.01]
[1732068961252,0.11179164,91612.0,91588.0,0.01]
[1732068961472,0.11179164,91612.0,91585.0,0.01]
[1732068961473,0.11326322,91612.0,91584.0,0.01]
[1732068961700,0.002,91610.0,91588.0,0.03484603]
[1732068961950,0.002,91610.0,91582.0,0.1]
[1732068961951,0.24249168,91609.0,91582.0,0.01]
[1732068962191,0.24123253,91609.0,91581.0,0.01]
[1732068962437,0.24123253,91609.0,91578.0,0.09731352]
[1732068962438,0.0831,91598.0,91574.0,0.1]
[1732068962675,0.002,91593.0,91579.0,0.0359291]
[1732068962894,0.002,91591.0,91567.0,0.01137994]
[1732068963141,0.002,91586.0,91567.0,0.0350584]
[1732068963377,0.002,91586.0,91557.0,0.14591066]
[1732068963378,0.002,91582.0,91556.0,0.09727377]
[1732068963609,0.1948925,91585.0,91554.0,0.01]
[1732068963610,0.11379272,91581.0,91554.0,0.01]
[1732068963850,0.11379272,91581.0,91548.0,0.05728233]
[1732068963851,0.002,91579.0,91548.0,0.0459]
[1732068964079,0.11179276,91578.0,91553.0,0.04573443]
[1732068964297,0.11322033,91578.0,91554.0,0.01]
[1732068965265,0.11179276,91578.0,91554.0,0.01]
[1732068965706,0.00142704,91577.0,91554.0,0.01]
[1732068965927,0.11179276,91576.0,91554.0,0.01]
[1732068966368,0.00142597,91575.0,91554.0,0.01]
[1732068966581,0.11179276,91574.0,91554.0,0.01]
[1732068966763,0.1132182,91574.0,91554.0,0.01]
[1732068966995,0.00142544,91574.0,91555.0,0.01]
[1732068967240,0.00142544,91574.0,91539.0,0.0282753]
[1732068967468,0.01,91577.0,91550.0,0.10906255]
[1732068967694,0.0014141,91573.0,91550.0,0.10906255]
[1732068967926,0.01,91577.0,91550.0,0.10906255]
[1732068968378,0.00141656,91576.0,91550.0,0.10906255]
[1732068968858,0.01,91572.0,91539.0,0.06455507]
[1732068969082,0.01,91572.0,91540.0,0.10906255]
[1732068969083,0.01,91570.0,91540.0,0.10906255]
[1732068969306,0.12179282,91569.0,91540.0,0.1]
[1732068969753,0.12320565,91569.0,91540.0,0.1]
[1732068970025,0.01,91568.0,91540.0,0.1]
[1732068970244,0.11134986,91567.0,91540.0,0.1]
[1732068970481,0.11276162,91567.0,91540.0,0.1]
[1732068970699,0.11003133,91567.0,91540.0,0.1]
[1732068972038,0.11003133,91567.0,91550.0,0.0008542]
[1732068972261,0.0828,91561.0,91550.0,0.0008542]
[1732068972478,0.01,91569.0,91550.0,0.0008542]
[1732068972479,0.03229269,91596.0,91575.0,0.27103838]
[1732068972711,0.03229269,91596.0,91550.0,0.0008542]
[1732068972712,0.002,91569.0,91550.0,0.0008542]
[1732068972938,0.002,91569.0,91553.0,0.1]
[1732068972939,0.10906255,91568.0,91553.0,0.1]
[1732068973170,0.00273058,91567.0,91553.0,0.1]
[1732068973401,0.10906255,91566.0,91550.0,0.0008542]
[1732068973622,0.00273058,91565.0,91550.0,0.0008542]
[1732068973853,0.10906255,91564.0,91550.0,0.0008542]
[1732068974075,0.00273058,91563.0,91550.0,0.0008542]
[1732068974308,0.10906255,91562.0,91550.0,0.0008542]
[1732068974527,0.00273058,91561.0,91550.0,0.0008542]
[1732068974743,0.002,91569.0,91550.0,0.0008542]
[1732068974961,0.10906255,91568.0,91550.0,0.0008542]
[1732068975215,0.00109151,91567.0,91565.0,0.1]
[1732068975438,0.19186255,91566.0,91565.0,0.1]
[1732068975671,0.23736255,91566.0,91550.0,0.0008542]
[1732068975887,0.23736255,91566.0,91565.0,0.1]
[1732068976110,0.12815255,91566.0,91550.0,0.03689673]
[1732068976341,0.12815255,91566.0,91550.0,0.0008542]
[1732068977060,0.13015255,91566.0,91550.0,0.0008542]
[1732068977291,0.002,91562.0,91550.0,0.0008542]
[1732068977524,0.0455,91566.0,91550.0,0.0008542]
[1732068977525,0.11106255,91561.0,91550.0,0.0008542]
[1732068978021,0.00309151,91560.0,91550.0,0.03605754]
[1732068978245,0.10906255,91559.0,91550.0,0.0008542]
[1732068978466,0.0455,91551.0,91550.0,0.0008542]
[1732068978720,0.04659151,91551.0,91550.0,0.0008542]
[1732068978936,0.15565406,91551.0,91550.0,0.0008542]
[1732068979165,0.2400905,91551.0,91550.0,0.0008542]
[1732068979394,0.25917567,91551.0,91550.0,0.0008542]
[1732068980052,0.29274601,91551.0,91550.0,0.0008542]
[1732068980289,0.29274741,91551.0,91550.0,0.0008542]
[1732068981400,0.29276179,91551.0,91550.0,0.0008542]
[1732068981628,0.27258068,91551.0,91550.0,0.0008542]
[1732068981845,0.29276215,91551.0,91550.0,0.0008542]
[1732068982296,0.10427316,91551.0,91550.0,0.0008542]
[1732068982523,0.02147316,91551.0,91550.0,0.0238542]
[1732068982755,0.02147316,91551.0,91550.0,0.1238542]
[1732068982756,0.00129191,91551.0,91550.0,0.1238542]
[1732068983225,0.00109151,91560.0,91551.0,0.023]
[1732068983693,0.02146626,91559.0,91551.0,0.023]
[1732068983913,0.02146626,91559.0,91550.0,0.0008542]
[1732068983914,0.02020062,91558.0,91550.0,0.1008542]
[1732068984175,0.02020062,91557.0,91551.0,0.023]
[1732068984422,0.00126457,91557.0,91550.0,0.0008542]
[1732068984649,0.00126457,91557.0,91553.0,0.023]
[1732068984870,0.0017092,91567.0,91555.0,0.023]
[1732068985096,0.0017092,91567.0,91553.0,0.023]
[1732068985097,0.0017092,91567.0,91556.0,0.00218422]
[1732068985393,0.0828,91570.0,91557.0,0.023]
[1732068985394,0.06378429,91570.0,91557.0,0.023]
[1732068985631,0.002,91579.0,91555.0,0.023]
[1732068985852,0.00109151,91572.0,91557.0,0.023]
[1732068986077,0.002,91579.0,91557.0,0.023]
[1732068986078,0.02459723,91573.0,91557.0,0.023]
[1732068986301,0.01,91589.0,91551.0,0.023]
[1732068986302,0.002,91580.0,91551.0,0.023]
[1732068986528,0.12929907,91579.0,91553.0,0.023]
[1732068986776,0.002,91580.0,91555.0,0.023]
[1732068986994,0.002,91580.0,91557.0,0.123]
[1732068987216,0.002,91580.0,91559.0,0.023]
[1732068987445,0.002,91584.0,91561.0,0.023]
[1732068987683,0.11106255,91584.0,91563.0,0.023]
[1732068988140,0.002,91580.0,91559.0,0.023]
[1732068988364,0.04378845,91612.0,91551.0,0.01]
[1732068988365,0.002,91588.0,91561.0,0.123]
[1732068988589,0.002,91590.0,91563.0,0.123]
[1732068988798,0.002,91590.0,91565.0,0.123]
[1732068989013,0.002,91590.0,91566.0,0.10906255]
[1732068989276,0.002,91590.0,91568.0,0.023]
[1732068989488,0.002,91590.0,91570.0,0.023]
[1732068989716,0.002,91590.0,91571.0,0.00218381]
[1732068989940,0.002,91587.0,91572.0,0.023]
[1732068990875,0.002,91587.0,91567.0,0.1]
[1732068990876,0.002,91587.0,91568.0,0.023]
[1732068991110,0.18956255,91594.0,91569.0,0.023]
[1732068991335,0.002,91573.0,91559.0,0.04359815]
[1732068991557,0.002,91577.0,91559.0,0.04359815]
[1732068991775,0.002,91577.0,91552.0,0.00218419]
[1732068992012,0.10906255,91586.0,91552.0,0.00218419]
[1732068992013,0.002,91574.0,91552.0,0.00218419]
[1732068992245,0.001,91574.0,91551.0,0.04511714]
[1732068992470,0.002,91570.0,91551.0,0.04511714]
[1732068992699,0.002,91570.0,91539.0,0.01]
[1732068992923,0.002,91570.0,91550.0,0.04502006]
[1732068993168,0.002,91570.0,91550.0,0.0008542]
[1732068993821,0.002,91567.0,91550.0,0.0008542]
[1732068994527,0.002,91570.0,91550.0,0.0008542]
[1732068994733,0.002,91569.0,91550.0,0.0008542]
[1732068995622,0.10906255,91568.0,91550.0,0.0008542]
[1732068995838,0.10268209,91567.0,91550.0,0.04497582]
[1732068996084,0.0469,91579.0,91550.0,0.0008542]
[1732068996321,0.10906255,91578.0,91551.0,0.0021846]
[1732068996558,0.0017092,91587.0,91551.0,0.11124715]
[1732068996775,0.0017092,91587.0,91550.0,0.0008542]
[1732068996776,0.10906255,91586.0,91552.0,0.10906255]
[1732068997035,0.10906255,91586.0,91551.0,0.04434285]
[1732068997267,0.0202846,91585.0,91551.0,0.1534054]
[1732068997500,0.0017092,91587.0,91551.0,0.1534054]
[1732068997501,0.12934715,91584.0,91552.0,0.123]
[1732068997734,0.0202846,91583.0,91552.0,0.123]
[1732068997968,0.18814715,91582.0,91551.0,0.023]
[1732068998213,0.0202846,91581.0,91551.0,0.023]
[1732068998452,0.12934715,91580.0,91551.0,0.023]
[1732068998692,0.0202846,91579.0,91551.0,0.023]
[1732068998925,0.01,91571.0,91550.0,0.04604656]
[1732068999161,0.21264715,91570.0,91550.0,0.04604656]
[1732068999376,0.0202846,91569.0,91550.0,0.04604656]
[1732068999616,0.12934769,91568.0,91550.0,0.04604656]
[1732068999835,0.046,91567.0,91550.0,0.04604656]
[1732069000050,0.10906255,91566.0,91550.0,0.04604656]
[1732069000523,0.02028467,91565.0,91551.0,0.023]
[1732069000783,0.10906255,91564.0,91551.0,0.023]
[1732069002604,0.0833,91570.0,91551.0,0.023]
[1732069002845,0.10906255,91569.0,91551.0,0.023]
[1732069003072,0.10906255,91569.0,91550.0,0.04604656]
[1732069003073,0.0766,91579.0,91560.0,0.023]
[1732069003323,0.02028704,91578.0,91560.0,0.02518411]
[1732069003565,0.10906255,91586.0,91560.0,0.02518411]
[1732069003798,0.02028759,91585.0,91560.0,0.023]
[1732069004033,0.0766,91588.0,91552.0,0.10906255]
[1732069004034,0.10906255,91584.0,91562.0,0.023]
[1732069004247,0.10906255,91584.0,91564.0,0.023]
[1732069004459,0.0766,91588.0,91564.0,0.023]
[1732069004672,0.0766,91588.0,91557.0,0.023]
[1732069004673,0.10906255,91586.0,91557.0,0.023]
[1732069004884,0.10906255,91586.0,91559.0,0.023]
[1732069005100,0.10906255,91586.0,91560.0,0.00218404]
[1732069005320,0.0766,91599.0,91561.0,0.1688]
[1732069005529,0.02028295,91598.0,91563.0,0.123]
[1732069005757,0.0766,91599.0,91565.0,0.123]
[1732069005980,0.0766,91599.0,91567.0,0.023]
[1732069006184,0.02028229,91598.0,91567.0,0.023]
[1732069006399,0.0766,91599.0,91566.0,0.023]
[1732069006637,0.0766,91599.0,91569.0,0.023]
[1732069006866,0.0766,91599.0,91566.0,0.023]
[1732069006867,0.0766,91599.0,91571.0,0.023]
[1732069007089,0.0766,91599.0,91573.0,0.123]
[1732069007341,0.046,91607.0,91573.0,0.123]
[1732069007342,0.046,91607.0,91575.0,0.123]
[1732069007786,0.046,91607.0,91575.0,0.22041874]
[1732069008023,0.046,91607.0,91577.0,0.123]
[1732069008242,0.046,91607.0,91579.0,0.023]
[1732069008430,0.046,91607.0,91581.0,0.023]
[1732069008713,0.046,91607.0,91581.0,0.02518362]
[1732069008931,0.046,91607.0,91578.0,0.023]
[1732069009147,0.046,91607.0,91579.0,0.00218362]
[1732069009356,0.0766,91608.0,91580.0,0.02116549]
[1732069009571,0.0766,91608.0,91581.0,0.00218362]
[1732069010327,0.0766,91608.0,91580.0,0.02116549]
[1732069010541,0.0766,91608.0,91578.0,0.1]
[1732069010751,0.0766,91608.0,91578.0,0.19741874]
[1732069011195,0.0766,91608.0,91578.0,0.24097854]
[1732069011427,0.0766,91608.0,91579.0,0.123]
[1732069011645,0.0766,91608.0,91581.0,0.023]
[1732069011884,0.0766,91608.0,91579.0,0.123]
[1732069012525,0.0766,91608.0,91579.0,0.023]
[1732069013617,0.01,91607.0,91579.0,0.023]
[1732069013826,0.0766,91608.0,91581.0,0.023]
[1732069014486,0.0766,91608.0,91580.0,0.023]
[1732069015341,0.0766,91608.0,91582.0,0.023]
[1732069016520,0.0766,91608.0,91580.0,0.023]
[1732069016927,0.0766,91608.0,91579.0,0.023]
[1732069017596,0.0766,91608.0,91579.0,0.02518366]
[1732069018287,0.0766,91608.0,91578.0,0.0435598]
[1732069018288,0.0766,91608.0,91583.0,0.22059479]
[1732069018501,0.0766,91608.0,91583.0,0.123]
[1732069018762,0.0766,91608.0,91583.0,0.22059479]
[1732069019016,0.0766,91608.0,91585.0,0.023]
[1732069019239,0.0766,91608.0,91586.0,0.12518346]
[1732069020588,0.0758,91616.0,91586.0,0.31714601]
[1732069020791,0.0017084,91626.0,91586.0,0.31714601]
[1732069020792,0.0758,91624.0,91589.0,0.023]
[1732069021008,0.0758,91624.0,91601.0,0.023]
[1732069021221,0.0017084,91626.0,91603.0,0.123]
[1732069021453,0.0017084,91626.0,91606.0,0.023]
[1732069021665,0.0017084,91626.0,91605.0,0.19751237]
[1732069021666,0.0017084,91626.0,91608.0,0.123]
[1732069021910,0.0017084,91626.0,91608.0,0.32957492]
[1732069022152,0.0017084,91626.0,91610.0,0.123]
[1732069023440,0.0017084,91626.0,91611.0,0.0021828]
[1732069023685,0.0017084,91626.0,91612.0,0.023]